[Event "Titled Tuesday Blitz April 18 Early 2023"]
[White "Kushko, Dmitriy"]
[Black "Hua, Lefong"]
[WhiteFideId "14162261"]
[BlackFideId "2602253"]
[WhiteElo "2230"]
[BlackElo "2652"]
[Result "0-1"]
[Round "11"]
[TimeControl "180+2"]
[Date "2023.04.18"]
[WhiteClock "0:00:08"]
[BlackClock "0:00:06"]

1. f4 {[%clk 0:03:00]}  Nf6 {[%clk 0:02:53]} 2. Nf3 {[%clk 0:03:00]}  g6 {[%clk 0:02:54]} 3. g3 {[%clk 0:03:00]}  Bg7 {[%clk 0:02:54]} 4. Bg2 {[%clk 0:03:01]}  O-O {[%clk 0:02:55]} 5. O-O {[%clk 0:03:01]}  c5 {[%clk 0:02:55]} 6. d3 {[%clk 0:03:01]}  Nc6 {[%clk 0:02:56]} 7. e4 {[%clk 0:03:01]}  d6 {[%clk 0:02:56]} 8. Nc3 {[%clk 0:03:00]}  Bg4 {[%clk 0:02:55]} 9. h3 {[%clk 0:03:00]}  Bxf3 {[%clk 0:02:55]} 10. Qxf3 {[%clk 0:03:01]}  Nd4 {[%clk 0:02:54]} 11. Qf2 {[%clk 0:03:01]}  Nd7 {[%clk 0:02:52]} 12. Nd1 {[%clk 0:02:57]}  Rc8 {[%clk 0:02:50]} 13. Ne3 {[%clk 0:02:56]}  b5 {[%clk 0:02:49]} 14. c3 {[%clk 0:02:52]}  Nc6 {[%clk 0:02:48]} 15. Bd2 {[%clk 0:02:52]}  a5 {[%clk 0:02:48]} 16. h4 {[%clk 0:02:49]}  b4 {[%clk 0:02:46]} 17. h5 {[%clk 0:02:49]}  e6 {[%clk 0:02:43]} 18. g4 {[%clk 0:02:43]}  bxc3 {[%clk 0:02:33]} 19. bxc3 {[%clk 0:02:43]}  Rb8 {[%clk 0:02:34]} 20. Rab1 {[%clk 0:02:32]}  Rxb1 {[%clk 0:02:26]} 21. Rxb1 {[%clk 0:02:31]}  Qc7 {[%clk 0:02:26]} 22. g5 {[%clk 0:02:27]}  Rb8 {[%clk 0:02:24]} 23. Rxb8+ {[%clk 0:02:13]}  Qxb8 {[%clk 0:02:22]} 24. e5 {[%clk 0:02:13]}  d5 {[%clk 0:02:20]} 25. h6 {[%clk 0:02:11]}  Bf8 {[%clk 0:02:19]} 26. c4 {[%clk 0:02:08]}  Qb1+ {[%clk 0:02:08]} 27. Kh2 {[%clk 0:02:00]}  Qxd3 {[%clk 0:01:58]} 28. cxd5 {[%clk 0:01:56]}  exd5 {[%clk 0:01:58]} 29. Nxd5 {[%clk 0:01:40]}  Nb4 {[%clk 0:01:39]} 30. Nc3 {[%clk 0:00:38]}  c4 {[%clk 0:01:27]} 31. a3 {[%clk 0:00:36]}  Nc2 {[%clk 0:01:19]} 32. Be4 {[%clk 0:00:23]}  Qd4 {[%clk 0:01:19]} 33. Qxd4 {[%clk 0:00:23]}  Nxd4 {[%clk 0:01:19]} 34. Be3 {[%clk 0:00:18]}  Ne6 {[%clk 0:01:12]} 35. a4 {[%clk 0:00:12]}  Bc5 {[%clk 0:01:11]} 36. Bc1 {[%clk 0:00:11]}  Bb4 {[%clk 0:01:00]} 37. Nd5 {[%clk 0:00:11]}  Nec5 {[%clk 0:01:00]} 38. Bc2 {[%clk 0:00:09]}  Kf8 {[%clk 0:00:57]} 39. Kg3 {[%clk 0:00:09]}  Ne6 {[%clk 0:00:52]} 40. Be3 {[%clk 0:00:07]}  Bc5 {[%clk 0:00:52]} 41. Bd2 {[%clk 0:00:07]}  Nd4 {[%clk 0:00:50]} 42. Bd1 {[%clk 0:00:08]}  Nb3 {[%clk 0:00:46]} 43. Bc3 {[%clk 0:00:07]}  Be7 {[%clk 0:00:11]} 44. Bg4 {[%clk 0:00:06]}  Ndc5 {[%clk 0:00:09]} 45. Kf3 {[%clk 0:00:07]}  Nxa4 {[%clk 0:00:09]} 46. Be1 {[%clk 0:00:06]}  Nd4+ {[%clk 0:00:08]} 47. Ke4 {[%clk 0:00:06]}  Ne6 {[%clk 0:00:08]} 48. Bxa5 {[%clk 0:00:03]}  Nec5+ {[%clk 0:00:06]} 49. Kf3 {[%clk 0:00:04]}  Ne6 {[%clk 0:00:06]} 50. Nc3 {[%clk 0:00:04]}  Nxc3 {[%clk 0:00:05]} 51. Bxc3 {[%clk 0:00:05]}  Bc5 {[%clk 0:00:06]} 52. Ke4 {[%clk 0:00:05]}  Ke7 {[%clk 0:00:06]} 53. Be2 {[%clk 0:00:05]}  Bb6 {[%clk 0:00:05]} 54. Bxc4 {[%clk 0:00:05]}  Nc5+ {[%clk 0:00:05]} 55. Kd5 {[%clk 0:00:05]}  Ne6 {[%clk 0:00:06]} 56. Bb4+ {[%clk 0:00:06]}  Ke8 {[%clk 0:00:06]} 57. Bd2 {[%clk 0:00:06]}  Bf2 {[%clk 0:00:03]} 58. Kd6 {[%clk 0:00:06]}  Nd4 {[%clk 0:00:04]} 59. Bd5 {[%clk 0:00:03]}  Nf5+ {[%clk 0:00:03]} 60. Kc6 {[%clk 0:00:03]}  Be3 {[%clk 0:00:04]} 61. Bc1 {[%clk 0:00:02]}  Bxc1 {[%clk 0:00:04]} 62. Kb7 {[%clk 0:00:01]}  Bxf4 {[%clk 0:00:04]} 63. Kc7 {[%clk 0:00:02]}  Bxe5+ {[%clk 0:00:02]} 64. Kc6 {[%clk 0:00:03]}  Bf4 {[%clk 0:00:03]} 65. Be4 {[%clk 0:00:04]}  Bxg5 {[%clk 0:00:03]} 66. Kd5 {[%clk 0:00:05]}  Bxh6 {[%clk 0:00:03]} 67. Bf3 {[%clk 0:00:05]}  Ke7 {[%clk 0:00:04]} 68. Ke4 {[%clk 0:00:06]}  Ng7 {[%clk 0:00:04]} 69. Bg4 {[%clk 0:00:07]}  f5+ {[%clk 0:00:05]} 70. Kf3 {[%clk 0:00:07]}  fxg4+ {[%clk 0:00:05]} 71. Kxg4 {[%clk 0:00:08]}  Kf6 {[%clk 0:00:06]} 0-1


[Site "https://www.chess.com"]

[Event "Titled Tuesday Blitz April 18 Early 2023"]
[White "wqws"]
[Black "Andreev, Konstantin"]
[BlackFideId "24239305"]
[WhiteElo "2610"]
[BlackElo "2106"]
[Result "1-0"]
[Round "11"]
[TimeControl "180+2"]
[Date "2023.04.18"]
[WhiteClock "0:02:11"]
[BlackClock "0:00:01"]

1. e4 {[%clk 0:03:00]}  c5 {[%clk 0:03:00]} 2. Nf3 {[%clk 0:03:01]}  e6 {[%clk 0:02:59]} 3. d4 {[%clk 0:03:01]}  cxd4 {[%clk 0:03:00]} 4. Nxd4 {[%clk 0:03:02]}  Nc6 {[%clk 0:03:01]} 5. Nc3 {[%clk 0:03:03]}  Qc7 {[%clk 0:03:01]} 6. a3 {[%clk 0:03:04]}  Nf6 {[%clk 0:03:00]} 7. Nxc6 {[%clk 0:03:02]}  bxc6 {[%clk 0:03:00]} 8. Bd3 {[%clk 0:03:01]}  Be7 {[%clk 0:02:57]} 9. O-O {[%clk 0:03:02]}  O-O {[%clk 0:02:57]} 10. f4 {[%clk 0:03:02]}  d5 {[%clk 0:02:58]} 11. e5 {[%clk 0:03:02]}  Nd7 {[%clk 0:02:58]} 12. Rf3 {[%clk 0:03:02]}  Rd8 {[%clk 0:02:49]} 13. Rh3 {[%clk 0:02:56]}  g6 {[%clk 0:02:26]} 14. Kh1 {[%clk 0:02:51]}  Bf8 {[%clk 0:02:23]} 15. Be3 {[%clk 0:02:47]}  Bg7 {[%clk 0:02:15]} 16. Bf2 {[%clk 0:02:44]}  a6 {[%clk 0:02:13]} 17. Bh4 {[%clk 0:02:42]}  Re8 {[%clk 0:02:14]} 18. Bg5 {[%clk 0:02:42]}  c5 {[%clk 0:02:11]} 19. Qe1 {[%clk 0:02:41]}  Bb7 {[%clk 0:02:01]} 20. Bh6 {[%clk 0:02:36]}  Nf8 {[%clk 0:01:58]} 21. Qh4 {[%clk 0:02:34]}  c4 {[%clk 0:01:55]} 22. Bf1 {[%clk 0:02:31]}  d4 {[%clk 0:01:55]} 23. Nd1 {[%clk 0:02:31]}  Qc6 {[%clk 0:01:52]} 24. Nf2 {[%clk 0:02:30]}  Bxh6 {[%clk 0:01:14]} 25. Qxh6 {[%clk 0:02:29]}  f5 {[%clk 0:01:14]} 26. exf6 {[%clk 0:02:27]}  Qc7 {[%clk 0:01:15]} 27. Ng4 {[%clk 0:02:22]}  Qf7 {[%clk 0:01:14]} 28. Bxc4 {[%clk 0:02:21]}  Rac8 {[%clk 0:01:11]} 29. Bd3 {[%clk 0:02:21]}  Rc7 {[%clk 0:00:51]} 30. Qg5 {[%clk 0:02:18]}  Kh8 {[%clk 0:00:44]} 31. Ne5 {[%clk 0:02:18]}  Qg8 {[%clk 0:00:41]} 32. Bxg6 {[%clk 0:02:13]}  Nxg6 {[%clk 0:00:04]} 33. Nxg6+ {[%clk 0:02:11]}  Qxg6 {[%clk 0:00:04]} 34. Qxg6 {[%clk 0:02:11]}  Rg8 {[%clk 0:00:05]} 35. Qxg8+ {[%clk 0:02:09]}  Kxg8 {[%clk 0:00:06]} 36. Rg3+ {[%clk 0:02:08]}  Kf8 {[%clk 0:00:06]} 37. Rg7 {[%clk 0:02:09]}  Rxg7 {[%clk 0:00:03]} 38. fxg7+ {[%clk 0:02:10]}  Kxg7 {[%clk 0:00:04]} 39. Rd1 {[%clk 0:02:11]}  Be4 {[%clk 0:00:03]} 40. Rxd4 {[%clk 0:02:11]}  Bxc2 {[%clk 0:00:03]} 41. b4 {[%clk 0:02:11]}  Kf6 {[%clk 0:00:03]} 42. Rd6 {[%clk 0:02:11]}  Kf5 {[%clk 0:00:01]} 43. Rxa6 {[%clk 0:02:11]} 1-0


[Site "https://www.chess.com"]

[Event "Titled Tuesday Blitz April 18 Early 2023"]
[White "Harshad S"]
[Black "Indjic, Aleksandar"]
[WhiteFideId "46616551"]
[BlackFideId "911925"]
[WhiteElo "2163"]
[BlackElo "2614"]
[Result "1-0"]
[Round "11"]
[TimeControl "180+2"]
[Date "2023.04.18"]
[WhiteClock "0:00:13"]
[BlackClock "0:00:20"]

1. e4 {[%clk 0:03:00]}  a6 {[%clk 0:02:55]} 2. d4 {[%clk 0:02:59]}  d6 {[%clk 0:02:55]} 3. Nf3 {[%clk 0:02:56]}  g6 {[%clk 0:02:55]} 4. Be3 {[%clk 0:02:56]}  Bg7 {[%clk 0:02:55]} 5. Bd3 {[%clk 0:02:55]}  Nd7 {[%clk 0:02:55]} 6. O-O {[%clk 0:02:53]}  e6 {[%clk 0:02:55]} 7. c4 {[%clk 0:02:50]}  b6 {[%clk 0:02:55]} 8. Nc3 {[%clk 0:02:50]}  Bb7 {[%clk 0:02:56]} 9. Nd2 {[%clk 0:02:50]}  c5 {[%clk 0:02:53]} 10. d5 {[%clk 0:02:50]}  e5 {[%clk 0:02:54]} 11. a3 {[%clk 0:02:46]}  Ngf6 {[%clk 0:02:52]} 12. b4 {[%clk 0:02:45]}  h5 {[%clk 0:02:46]} 13. h3 {[%clk 0:02:44]}  h4 {[%clk 0:02:46]} 14. Rb1 {[%clk 0:02:42]}  Qc7 {[%clk 0:02:44]} 15. Na4 {[%clk 0:02:39]}  Bc8 {[%clk 0:02:42]} 16. Nf3 {[%clk 0:02:32]}  Bh6 {[%clk 0:02:36]} 17. Qd2 {[%clk 0:02:21]}  Bxe3 {[%clk 0:02:35]} 18. fxe3 {[%clk 0:02:21]}  Qd8 {[%clk 0:02:34]} 19. Qf2 {[%clk 0:02:19]}  Kf8 {[%clk 0:02:23]} 20. Nxh4 {[%clk 0:02:11]}  Kg7 {[%clk 0:02:23]} 21. Nf3 {[%clk 0:01:48]}  a5 {[%clk 0:02:22]} 22. bxc5 {[%clk 0:01:46]}  Nxc5 {[%clk 0:02:18]} 23. Nxc5 {[%clk 0:01:41]}  bxc5 {[%clk 0:02:19]} 24. Nd2 {[%clk 0:01:34]}  Rf8 {[%clk 0:02:14]} 25. Rfc1 {[%clk 0:00:59]}  Nh7 {[%clk 0:01:54]} 26. Nf1 {[%clk 0:00:54]}  a4 {[%clk 0:01:48]} 27. Ng3 {[%clk 0:00:47]}  Kh8 {[%clk 0:01:40]} 28. Rb5 {[%clk 0:00:40]}  Ba6 {[%clk 0:01:39]} 29. Rb2 {[%clk 0:00:40]}  Rb8 {[%clk 0:01:35]} 30. Rcb1 {[%clk 0:00:40]}  Rxb2 {[%clk 0:01:34]} 31. Qxb2 {[%clk 0:00:37]}  Qg5 {[%clk 0:01:28]} 32. Nf1 {[%clk 0:00:35]}  Bc8 {[%clk 0:01:27]} 33. Kh1 {[%clk 0:00:32]}  Qf6 {[%clk 0:01:18]} 34. Qe2 {[%clk 0:00:30]}  Ng5 {[%clk 0:01:17]} 35. Kg1 {[%clk 0:00:28]}  Kg7 {[%clk 0:01:17]} 36. Ng3 {[%clk 0:00:28]}  Rh8 {[%clk 0:01:16]} 37. Rf1 {[%clk 0:00:28]}  Qe7 {[%clk 0:01:16]} 38. Bc2 {[%clk 0:00:24]}  Bd7 {[%clk 0:01:16]} 39. Qd2 {[%clk 0:00:16]}  f6 {[%clk 0:01:11]} 40. Qe2 {[%clk 0:00:16]}  Rh4 {[%clk 0:01:06]} 41. Rb1 {[%clk 0:00:15]}  Kh6 {[%clk 0:00:53]} 42. Qf2 {[%clk 0:00:14]}  Kh7 {[%clk 0:00:52]} 43. Nf5 {[%clk 0:00:13]}  gxf5 {[%clk 0:00:50]} 44. Qxh4+ {[%clk 0:00:14]}  Kg7 {[%clk 0:00:51]} 45. exf5 {[%clk 0:00:14]}  Bc8 {[%clk 0:00:49]} 46. Rb8 {[%clk 0:00:14]}  Qc7 {[%clk 0:00:48]} 47. Rb1 {[%clk 0:00:14]}  Qa5 {[%clk 0:00:48]} 48. Qf2 {[%clk 0:00:14]}  Qc3 {[%clk 0:00:46]} 49. h4 {[%clk 0:00:15]}  Nf7 {[%clk 0:00:35]} 50. Bxa4 {[%clk 0:00:16]}  Qxc4 {[%clk 0:00:29]} 51. Bb3 {[%clk 0:00:16]}  Qg4 {[%clk 0:00:27]} 52. Rf1 {[%clk 0:00:14]}  Nh6 {[%clk 0:00:26]} 53. Bd1 {[%clk 0:00:14]}  Qc4 {[%clk 0:00:19]} 54. Qg3+ {[%clk 0:00:14]}  Kf8 {[%clk 0:00:19]} 55. Qg6 {[%clk 0:00:15]}  Nf7 {[%clk 0:00:20]} 56. Bh5 {[%clk 0:00:13]} 1-0


[Site "https://www.chess.com"]

[Event "Titled Tuesday Blitz April 18 Early 2023"]
[White "Mekhitarian, Krikor Sevag"]
[Black "Arias, Juan Cruz"]
[WhiteFideId "2107660"]
[BlackFideId "118540"]
[WhiteElo "2604"]
[BlackElo "2243"]
[Result "0-1"]
[Round "11"]
[TimeControl "180+2"]
[Date "2023.04.18"]
[WhiteClock "0:00:03"]
[BlackClock "0:00:22"]

1. Nf3 {[%clk 0:03:00]}  d5 {[%clk 0:02:59]} 2. c4 {[%clk 0:02:53]}  e6 {[%clk 0:02:59]} 3. e3 {[%clk 0:02:50]}  Nf6 {[%clk 0:02:57]} 4. Nc3 {[%clk 0:02:50]}  Nbd7 {[%clk 0:02:50]} 5. b3 {[%clk 0:02:46]}  Bd6 {[%clk 0:02:49]} 6. Bb2 {[%clk 0:02:47]}  O-O {[%clk 0:02:48]} 7. Be2 {[%clk 0:02:34]}  Re8 {[%clk 0:02:46]} 8. d4 {[%clk 0:02:28]}  b6 {[%clk 0:02:42]} 9. cxd5 {[%clk 0:02:23]}  exd5 {[%clk 0:02:41]} 10. O-O {[%clk 0:02:23]}  a6 {[%clk 0:02:39]} 11. Rc1 {[%clk 0:02:20]}  Bb7 {[%clk 0:02:38]} 12. Bd3 {[%clk 0:02:16]}  g6 {[%clk 0:02:38]} 13. Ne2 {[%clk 0:02:15]}  Qe7 {[%clk 0:02:29]} 14. Qc2 {[%clk 0:02:13]}  Rac8 {[%clk 0:02:27]} 15. Ng3 {[%clk 0:02:12]}  Ne4 {[%clk 0:02:25]} 16. Qe2 {[%clk 0:02:11]}  h5 {[%clk 0:02:20]} 17. Bxa6 {[%clk 0:01:58]}  Bxa6 {[%clk 0:02:20]} 18. Qxa6 {[%clk 0:01:59]}  Ra8 {[%clk 0:02:20]} 19. Qd3 {[%clk 0:01:30]}  Rxa2 {[%clk 0:02:17]} 20. Rc2 {[%clk 0:01:29]}  Nxg3 {[%clk 0:02:06]} 21. hxg3 {[%clk 0:01:28]}  Nf6 {[%clk 0:01:54]} 22. Ne5 {[%clk 0:01:04]}  Ne4 {[%clk 0:01:53]} 23. Rfc1 {[%clk 0:01:02]}  Qe6 {[%clk 0:01:46]} 24. Qb5 {[%clk 0:00:53]}  Bxe5 {[%clk 0:01:37]} 25. dxe5 {[%clk 0:00:52]}  c5 {[%clk 0:01:38]} 26. Rd1 {[%clk 0:00:44]}  Rc8 {[%clk 0:01:25]} 27. Qd3 {[%clk 0:00:43]}  Rd8 {[%clk 0:01:20]} 28. Kh2 {[%clk 0:00:39]}  Kh7 {[%clk 0:01:10]} 29. f3 {[%clk 0:00:38]}  Ng5 {[%clk 0:01:10]} 30. Kg1 {[%clk 0:00:34]}  Qf5 {[%clk 0:01:04]} 31. Qxf5 {[%clk 0:00:30]}  gxf5 {[%clk 0:01:03]} 32. Rcd2 {[%clk 0:00:23]}  Ne6 {[%clk 0:01:00]} 33. Bc3 {[%clk 0:00:23]}  Rxd2 {[%clk 0:00:58]} 34. Rxd2 {[%clk 0:00:24]}  Ra8 {[%clk 0:00:55]} 35. Rxd5 {[%clk 0:00:16]}  Ra3 {[%clk 0:00:54]} 36. Kf2 {[%clk 0:00:13]}  Rxb3 {[%clk 0:00:54]} 37. Bd2 {[%clk 0:00:14]}  b5 {[%clk 0:00:50]} 38. e4 {[%clk 0:00:04]}  fxe4 {[%clk 0:00:49]} 39. f4 {[%clk 0:00:04]}  Kg6 {[%clk 0:00:48]} 40. Rd7 {[%clk 0:00:05]}  c4 {[%clk 0:00:41]} 41. f5+ {[%clk 0:00:01]}  Kxf5 {[%clk 0:00:41]} 42. Rxf7+ {[%clk 0:00:02]}  Kxe5 {[%clk 0:00:41]} 43. Rh7 {[%clk 0:00:03]}  c3 {[%clk 0:00:31]} 44. Be3 {[%clk 0:00:02]}  Rb2+ {[%clk 0:00:31]} 45. Kg1 {[%clk 0:00:01]}  b4 {[%clk 0:00:29]} 46. Rxh5+ {[%clk 0:00:02]}  Kf6 {[%clk 0:00:29]} 47. Rb5 {[%clk 0:00:02]}  c2 {[%clk 0:00:27]} 48. Kh2 {[%clk 0:00:03]}  b3 {[%clk 0:00:26]} 49. Kh3 {[%clk 0:00:03]}  Rb1 {[%clk 0:00:23]} 50. Kg4 {[%clk 0:00:04]}  b2 {[%clk 0:00:22]} 51. Rf5+ {[%clk 0:00:03]}  Ke7 {[%clk 0:00:22]} 0-1


[Site "https://www.chess.com"]

[Event "Titled Tuesday Blitz April 18 Early 2023"]
[White "Yuan, Qingyu"]
[Black "Janaszak, Dawid"]
[WhiteFideId "8609772"]
[BlackFideId "1119206"]
[WhiteElo "2359"]
[BlackElo "2220"]
[Result "0-1"]
[Round "11"]
[TimeControl "180+2"]
[Date "2023.04.18"]
[WhiteClock "0:00:14"]
[BlackClock "0:00:06"]

1. e4 {[%clk 0:03:00]}  c5 {[%clk 0:02:58]} 2. Nf3 {[%clk 0:03:01]}  Nc6 {[%clk 0:02:58]} 3. Bb5 {[%clk 0:03:01]}  e5 {[%clk 0:02:59]} 4. O-O {[%clk 0:02:57]}  Nge7 {[%clk 0:02:59]} 5. d3 {[%clk 0:02:57]}  g6 {[%clk 0:02:58]} 6. a3 {[%clk 0:02:52]}  Bg7 {[%clk 0:02:58]} 7. b4 {[%clk 0:02:53]}  d6 {[%clk 0:02:54]} 8. Be3 {[%clk 0:02:45]}  cxb4 {[%clk 0:02:48]} 9. axb4 {[%clk 0:02:43]}  O-O {[%clk 0:02:48]} 10. c3 {[%clk 0:02:33]}  Kh8 {[%clk 0:02:37]} 11. Na3 {[%clk 0:02:28]}  f5 {[%clk 0:02:33]} 12. exf5 {[%clk 0:02:18]}  Bxf5 {[%clk 0:02:26]} 13. Ng5 {[%clk 0:02:12]}  Nd5 {[%clk 0:02:20]} 14. Qb3 {[%clk 0:02:02]}  Nxe3 {[%clk 0:02:18]} 15. fxe3 {[%clk 0:02:01]}  Qxg5 {[%clk 0:02:18]} 16. e4 {[%clk 0:01:56]}  Bh3 {[%clk 0:02:14]} 17. Qc2 {[%clk 0:01:49]}  Be6 {[%clk 0:01:49]} 18. Ba4 {[%clk 0:01:42]}  Rxf1+ {[%clk 0:01:41]} 19. Rxf1 {[%clk 0:01:43]}  Rf8 {[%clk 0:01:41]} 20. Rxf8+ {[%clk 0:01:41]}  Bxf8 {[%clk 0:01:42]} 21. h3 {[%clk 0:01:41]}  Bxh3 {[%clk 0:01:37]} 22. Qf2 {[%clk 0:01:39]}  Bh6 {[%clk 0:01:25]} 23. Nc4 {[%clk 0:01:39]}  Be6 {[%clk 0:00:52]} 24. Nxd6 {[%clk 0:01:22]}  Qc1+ {[%clk 0:00:33]} 25. Kh2 {[%clk 0:01:21]}  Bf4+ {[%clk 0:00:23]} 26. g3 {[%clk 0:01:21]}  Qd2 {[%clk 0:00:21]} 27. Qxd2 {[%clk 0:01:11]}  Bxd2 {[%clk 0:00:21]} 28. Nxb7 {[%clk 0:01:12]}  Ne7 {[%clk 0:00:22]} 29. d4 {[%clk 0:01:01]}  exd4 {[%clk 0:00:15]} 30. cxd4 {[%clk 0:01:00]}  Bxb4 {[%clk 0:00:15]} 31. d5 {[%clk 0:00:56]}  Bc8 {[%clk 0:00:14]} 32. Nd8 {[%clk 0:00:55]}  Kg7 {[%clk 0:00:11]} 33. Bc6 {[%clk 0:00:45]}  Kf6 {[%clk 0:00:11]} 34. Ba8 {[%clk 0:00:43]}  a5 {[%clk 0:00:09]} 35. Bc6 {[%clk 0:00:40]}  Ke5 {[%clk 0:00:07]} 36. Ba8 {[%clk 0:00:35]}  a4 {[%clk 0:00:07]} 37. Nf7+ {[%clk 0:00:35]}  Kd4 {[%clk 0:00:06]} 38. d6 {[%clk 0:00:32]}  Ng8 {[%clk 0:00:05]} 39. Bd5 {[%clk 0:00:25]}  Bd7 {[%clk 0:00:05]} 40. Ba2 {[%clk 0:00:25]}  Nf6 {[%clk 0:00:05]} 41. e5 {[%clk 0:00:15]}  Ng4+ {[%clk 0:00:06]} 42. Kg2 {[%clk 0:00:15]}  Nxe5 {[%clk 0:00:07]} 43. Ng5 {[%clk 0:00:16]}  Bxd6 {[%clk 0:00:06]} 44. Nxh7 {[%clk 0:00:16]}  a3 {[%clk 0:00:05]} 45. Nf6 {[%clk 0:00:16]}  Bc6+ {[%clk 0:00:06]} 46. Kf2 {[%clk 0:00:17]}  Nd3+ {[%clk 0:00:06]} 47. Kf1 {[%clk 0:00:16]}  Nb4 {[%clk 0:00:07]} 48. Bb3 {[%clk 0:00:16]}  Nd5 {[%clk 0:00:06]} 49. Ng4 {[%clk 0:00:15]}  Ne3+ {[%clk 0:00:06]} 50. Nxe3 {[%clk 0:00:15]}  Kxe3 {[%clk 0:00:07]} 51. Bd5 {[%clk 0:00:15]}  Bxd5 {[%clk 0:00:06]} 52. g4 {[%clk 0:00:14]}  a2 {[%clk 0:00:06]} 0-1


[Site "https://www.chess.com"]

[Event "Titled Tuesday Blitz April 18 Early 2023"]
[White "Wagner, Dennis"]
[Black "Pajeken, Jakob Leon"]
[WhiteFideId "24650684"]
[BlackFideId "12942839"]
[WhiteElo "2470"]
[BlackElo "2414"]
[Result "0-1"]
[Round "11"]
[TimeControl "180+2"]
[Date "2023.04.18"]
[WhiteClock "0:00:07"]
[BlackClock "0:00:18"]

1. d4 {[%clk 0:03:00]}  d5 {[%clk 0:03:00]} 2. Nf3 {[%clk 0:03:00]}  Nf6 {[%clk 0:02:59]} 3. g3 {[%clk 0:03:00]}  c5 {[%clk 0:02:58]} 4. Bg2 {[%clk 0:03:00]}  cxd4 {[%clk 0:02:59]} 5. O-O {[%clk 0:03:01]}  h6 {[%clk 0:02:59]} 6. b3 {[%clk 0:02:59]}  e6 {[%clk 0:03:00]} 7. Bb2 {[%clk 0:02:59]}  Bd6 {[%clk 0:03:00]} 8. Nxd4 {[%clk 0:02:58]}  O-O {[%clk 0:02:58]} 9. c4 {[%clk 0:02:55]}  dxc4 {[%clk 0:02:56]} 10. bxc4 {[%clk 0:02:54]}  Qb6 {[%clk 0:02:38]} 11. Nb3 {[%clk 0:02:38]}  Rd8 {[%clk 0:02:34]} 12. Qc2 {[%clk 0:02:32]}  Na6 {[%clk 0:02:33]} 13. N1d2 {[%clk 0:02:06]}  Bd7 {[%clk 0:02:25]} 14. c5 {[%clk 0:01:48]}  Bxc5 {[%clk 0:02:18]} 15. Nc4 {[%clk 0:01:48]}  Qc7 {[%clk 0:02:16]} 16. Be5 {[%clk 0:01:47]}  Qc8 {[%clk 0:02:10]} 17. Rac1 {[%clk 0:01:04]}  Ng4 {[%clk 0:01:49]} 18. Nd6 {[%clk 0:00:48]}  Bxd6 {[%clk 0:01:04]} 19. Bxd6 {[%clk 0:00:49]}  Bc6 {[%clk 0:00:46]} 20. Bxc6 {[%clk 0:00:48]}  Rxd6 {[%clk 0:00:32]} 21. Bf3 {[%clk 0:00:47]}  Qxc2 {[%clk 0:00:32]} 22. Rxc2 {[%clk 0:00:48]}  Ne5 {[%clk 0:00:32]} 23. Bxb7 {[%clk 0:00:48]}  Rb8 {[%clk 0:00:33]} 24. Bxa6 {[%clk 0:00:39]}  Rxa6 {[%clk 0:00:34]} 25. Rd1 {[%clk 0:00:39]}  g5 {[%clk 0:00:32]} 26. Kg2 {[%clk 0:00:38]}  Kg7 {[%clk 0:00:31]} 27. h3 {[%clk 0:00:35]}  Rbb6 {[%clk 0:00:29]} 28. f4 {[%clk 0:00:34]}  Rc6 {[%clk 0:00:26]} 29. Rdc1 {[%clk 0:00:21]}  Rxc2 {[%clk 0:00:20]} 30. Rxc2 {[%clk 0:00:22]}  gxf4 {[%clk 0:00:20]} 31. gxf4 {[%clk 0:00:22]}  Ng6 {[%clk 0:00:21]} 32. Kf3 {[%clk 0:00:22]}  Nh4+ {[%clk 0:00:21]} 33. Ke4 {[%clk 0:00:21]}  Ra4+ {[%clk 0:00:20]} 34. Nd4 {[%clk 0:00:10]}  Nf5 {[%clk 0:00:19]} 35. e3 {[%clk 0:00:11]}  Nxd4 {[%clk 0:00:18]} 36. exd4 {[%clk 0:00:12]}  Ra3 {[%clk 0:00:18]} 37. Rg2+ {[%clk 0:00:07]}  Kf6 {[%clk 0:00:18]} 38. Rh2 {[%clk 0:00:07]}  Ke7 {[%clk 0:00:18]} 39. h4 {[%clk 0:00:07]}  f5+ {[%clk 0:00:18]} 0-1


[Site "https://www.chess.com"]

[Event "Titled Tuesday Blitz April 18 Early 2023"]
[White "Amilal Munkhdalai"]
[Black "benny_aizenberg"]
[WhiteFideId "4903250"]
[WhiteElo "2293"]
[BlackElo "2577"]
[Result "0-1"]
[Round "11"]
[TimeControl "180+2"]
[Date "2023.04.18"]
[WhiteClock "0:00:09"]
[BlackClock "0:00:15"]

1. e4 {[%clk 0:03:00]}  c5 {[%clk 0:02:57]} 2. Nf3 {[%clk 0:03:00]}  e6 {[%clk 0:02:57]} 3. d4 {[%clk 0:03:00]}  cxd4 {[%clk 0:02:58]} 4. Nxd4 {[%clk 0:03:01]}  Nf6 {[%clk 0:02:57]} 5. Bd3 {[%clk 0:02:59]}  d5 {[%clk 0:02:54]} 6. e5 {[%clk 0:02:57]}  Nfd7 {[%clk 0:02:55]} 7. f4 {[%clk 0:02:56]}  Nc6 {[%clk 0:02:54]} 8. c3 {[%clk 0:02:57]}  Bc5 {[%clk 0:02:54]} 9. Nb3 {[%clk 0:02:50]}  Bb6 {[%clk 0:02:54]} 10. Na3 {[%clk 0:02:50]}  O-O {[%clk 0:02:48]} 11. Nc2 {[%clk 0:02:49]}  Qh4+ {[%clk 0:02:42]} 12. g3 {[%clk 0:02:48]}  Qh3 {[%clk 0:02:42]} 13. Bf1 {[%clk 0:02:44]}  Qh6 {[%clk 0:02:28]} 14. Ncd4 {[%clk 0:02:32]}  f5 {[%clk 0:02:14]} 15. Qd3 {[%clk 0:02:04]}  Nc5 {[%clk 0:02:07]} 16. Nxc5 {[%clk 0:02:03]}  Bxc5 {[%clk 0:02:07]} 17. Be3 {[%clk 0:02:04]}  Bb6 {[%clk 0:01:59]} 18. Bg2 {[%clk 0:01:57]}  Bd7 {[%clk 0:01:59]} 19. O-O {[%clk 0:01:57]}  Rac8 {[%clk 0:01:57]} 20. Rad1 {[%clk 0:01:55]}  Qg6 {[%clk 0:01:48]} 21. Nb5 {[%clk 0:01:52]}  Nxe5 {[%clk 0:01:42]} 22. fxe5 {[%clk 0:01:38]}  Bxb5 {[%clk 0:01:42]} 23. Qxb5 {[%clk 0:01:37]}  Bxe3+ {[%clk 0:01:42]} 24. Kh1 {[%clk 0:01:37]}  Bb6 {[%clk 0:01:34]} 25. a4 {[%clk 0:01:25]}  Qe8 {[%clk 0:01:07]} 26. Qb3 {[%clk 0:01:22]}  Qe7 {[%clk 0:00:58]} 27. Rf4 {[%clk 0:01:19]}  Be3 {[%clk 0:00:54]} 28. Rf3 {[%clk 0:01:09]}  Bc5 {[%clk 0:00:53]} 29. Qa2 {[%clk 0:01:05]}  Rfd8 {[%clk 0:00:48]} 30. a5 {[%clk 0:01:02]}  Qc7 {[%clk 0:00:41]} 31. Re1 {[%clk 0:00:53]}  Be7 {[%clk 0:00:41]} 32. Rf4 {[%clk 0:00:44]}  Qc5 {[%clk 0:00:34]} 33. Rb4 {[%clk 0:00:39]}  Rd7 {[%clk 0:00:28]} 34. Qa4 {[%clk 0:00:37]}  Rdc7 {[%clk 0:00:26]} 35. Rd4 {[%clk 0:00:31]}  b5 {[%clk 0:00:20]} 36. Qa2 {[%clk 0:00:26]}  b4 {[%clk 0:00:16]} 37. Rxb4 {[%clk 0:00:25]}  Qf2 {[%clk 0:00:16]} 38. Rf1 {[%clk 0:00:25]}  Qe2 {[%clk 0:00:16]} 39. Rd4 {[%clk 0:00:14]}  Rxc3 {[%clk 0:00:16]} 40. Bxd5 {[%clk 0:00:09]}  Qxf1# {[%clk 0:00:15]} 0-1


[Site "https://www.chess.com"]